Workbook

Sheet Home

Sheet Introduction
B1: Cost of Attendance - How to use this spreadsheet
B4: This spreadsheet is to help you and us (and is for both Student Federal Aid AND Private Loans)
B5: a. To make the process as speedy and as simple as possible
B6: b. To cut out the risk of your application being rejected and you having to start again
B7: Student Federal Aid applicants should also use the flowchart that comes with this spreadsheet to see the order in which you need to do each stage of your application
B9: There is nothing which tells the school that everything the applicant needs to do has been completed.
B10: Schools are only told what has been done by an applicant
B11: There is nothing which tells the applicant that everything they need to do has been completed.
B12: There is nothing which tells the school that everything the applicant needs to do has been completed.
B14: You must complete and send us the spreadsheet "Cost of Attendance" tab
B15: There are sets of documents which we have to receive before we can certify and complete your loans.They are used to help you and the school in several ways.These documents and Cost of Attendance tab tell us that:
B17: 1.Everything needed has been completed.
B18: 2. Is a trigger for us to process your application.
B19: 3. How much you are eligible to borrow (Section 4)
B20: 4. How much of your loan will be retained by the government as origination fee (Federal Aid Only)
B21: 5. Calculates the cost of the originations fees and increases the PLUS loan to cover them (Federal Aid Only)
B22: 6. How much you want to borrow
B23: 7. The checklist is designed to help you ensure that we have everything we need for your application. It also highlights the impact of missing information.
B25: For your information
B26: The Basis of Costs tab shows you how we calculated the Cost of Attendance
B27: To ensure that your application is as smooth as possible, you must complete the spreadsheet and the checklist
B29: When we receive this spreadsheet and attachments it is our trigger that you have done everything for us to work on your loan. If anything on the checklist is missing we will not be able to start to process your application. If anything on the checklist or spreadsheet is untrue your application will be rejected by the ED Dept's systems.

Sheet Terms and Conditions
B1: Summary of Terms and Conditions
B3: FEDERAL STUDENT AID: DIRECT LOANS PROGRAM
B4: The administration of Federal Student Aid is a complex process for both student applicants and the Institutes of Higher Education that they are attending and is further complicated by Durham University being a Foreign School.
B5: The handbook of rules runs to over 900 pages, and it is not possible to outline every single regulation, further to this, there are the Durham University regulations to consider, and how the two regulation systems fit together.
B7: A: Summary of Terms and Conditions
B8: The Summary of Terms and Conditions listed on this COA worksheet are not exhaustive, before any significant changes of circumstance within your study programme, residence status, dependency requirements or other costs of attendance, you must ensure that the proposed changes conform to both US Department of Education regulations and Durham University Regulations. With regards to US Department of Education requirements, you must not assume that because a "Concession" (Concession is the Durham University term used for a change in circumstance that is applied for by the student or their department and/or College) is considered or granted by Durham University, that it is compliant with US Department of Education (USDE) regulations. You must check with (or ask your department/ College to check with) the Scholarships and Student Funding Office of Durham University, the equivalent of the Financial Aid office of a US School, that any proposed Concession conforms to the USDE rules.
B10: B: To be eligible to take out US Direct Loans you need to:
B11: 1) Register for an eligible course. Ineligible courses include (but not be restricted to) those listed below:
B12: Undergraduate degree Courses that include a “year abroad/that are less than 3 years*. -Courses with field trips/fieldwork in the US that equate to more than 25% of course length that equate to more than 25% of course length **.
B13: -Any Courses including internships or placements that equate to more than 25% of course length ***.
B14: -Non-degree programs (Graduate Diploma programs such as those in ‘Theology and Religion” or Philosophy” or the Postgraduate Certificate in Education (PGCE)).
B15: 2) Be a US Citizen or an eligible non-citizen.
B16: 3) Have a valid US social security number.
B17: 4) Be accepted to a programme of full-time or at least 50% part-time study) distance learning courses are not eligible).
B18: 5) If you are an existing student at Durham University, you are to have been assessed as having made satisfactory academic progress to continue your studies with us.
B19: 6) Be living in the UK during your studies at Durham (students who continue to live in the USA during their studies are not eligible).
B21: C: Eligibility for Federal Student Aid
B22: Eligibility for Federal Student Aid at a Foreign School is assessed annually for each new academic year; please note that eligibility in one year does not automatically imply or guarantee continued eligibility for a future year. Federal rules affecting eligibility may change from year to year, and personal circumstances affecting eligibility may change from year to year.
B24: D: Loans cannot be certified over the maximum value of your Cost of Attendance
B25: All other sources of formal scholarships, awards and recognised education loans need to be considered on the calculator. If dual funding with Federal Student Aid and Sallie Mae, the combined total of loans between the two sources cannot exceed the maximum value of Cost of Attendance (less any scholarship/award income). Some Veteran Affairs (VA) Education support may be eligible to be disregarded on the Cost of Attendance, please contact the Scholarships and Student Funding Office for advice.
B27: E: Federal Student Aid can only be used to fund students during their programme of study
B28: Federal Student Aid can only be used to fund students during their programme of study, whilst they are registered students. Students must progress through their programme at a pace that they will graduate within the maximum timeframe of 150%* of the published timeframe of the course.
B37: RE: status ends after these periods and does not extend to the publication of pass lists, or the graduation/congregation ceremonies.
B39: F: Federal Student Aid issued through a Foreign School is only permissible for study outside of the United States.
B40: You cannot receive the Federal Aid programme through Durham University, whilst residing and/or studying in the United States. This means that you must not be resident in the United States during your studies (vacation visits "home" is of course permissible), it also means that Federal Aid cannot be used to fund components of field-work studies or placement studies which may take place in the United States, during the duration of your course.
B42: Exemptions:
B43: - A single 12-month period of the writing-up period for a PhD programme. The writing-up period at Durham University is termed being "on continuation". Federal Rules currently permit this period to be in the United States if the research can only be conducted in the United States. Study abroad cannot exceed 25% of the program.
B44: - Study abroad within the US: Students can take up to 25% of their program of study (4 years with maximum of 1 year spent abroad) abroad only if the US institution is eligible to provide US Loans.
B45: - Study abroad outside the US: Students can take up to 25% of their program of study abroad as long as there is an agreement between the two participating schools.
B46: - Courses including Internship or placement: Students can take up to 25% of their program of study abroad as long as there is an agreement between the two participating schools.
B47: Please contact Scholarships & Student Funding Service to double check if your course is eligible for the Federal Aid funding
B49: G. Federal Student Aid cannot be used to fund any "Distance Learning".
B50: Federal Student Aid cannot be used to fund any "Distance Learning" courses at Durham University (for example, some of the Business Studies or Education Courses at Durham)
B52: H: Federal Student Aid can be used to help to pay towards the cost of childcare needed while the student is attending school.
B53: Dependents must be of full-time schooling age or younger (age 16 or less, where children are in UK school "6th Form", please get in touch with Scholarships and Student Funding Service) and residing with the Federal Aid applicant student in the UK. Federal Student Aid cannot be used to support dependents still resident in the United States, or not in the immediate care of the applicant. Scholarships and Student Funding Service require names and dates of birth of dependents being claimed for by the Federal Aid applicant student. Federal Student Aid cannot be used to pay for the subsistence of a student's family.
B55: I. Federal Student Aid eligibility ceases, even if previously approved, if you cease being a registered student within the year
B56: Federal Student Aid eligibility ceases, even if previously approved, if you cease being a registered student within the year (or cease being a student on continuation in the single 12-month period of writing up for a PhD student). Various circumstances can result in you not being a registered student, such as Withdrawal from Durham University, Leave of Absence from Durham University (often called a concession) for many reasons including long-term ill health and personal circumstances. Of particular importance is "Thesis Submission". Once a PhD thesis is submitted, you cease being a registered student (or student under continuation), and further disbursements are not permitted after this date. PhD students need to ensure their own funding between thesis submission and examination/corrections. If you believe that you may enter a period whereby you will not be a fully registered student (even temporarily), you must contact Scholarships and Student Funding Service to discuss your funding eligibility.
B58: J: Federal Student Aid is dependent upon "Satisfactory Academic Progress" (SAP)
B59: Federal Student Aid is dependent upon "Satisfactory Academic Progress" (SAP) continuing to be made during the period of study. If SAP is not maintained within accordance with Durham University Regulations, then eligibility for Federal Student Aid may be lost.
B61: K: Disbursements of Federal Student Aid are generally made three (3) times a year
B62: Disbursements of Federal Student Aid are generally made three (3) times a year (just after the start of each term, Durham University operates a three (3) term system over the academic year, not a semester system), and where possible disbursement values are equally spread between the disbursement dates. Loans are disbursed in USD to Durham University. Durham University will convert incoming USD loans to GBP. Access to a GBP bank account in your name is recommended.
B64: L: There are several documentation requirements for students accessing Student Federal Aid, most of these are required in the application process
B65: There are several documentation requirements for students accessing Student Federal Aid, most of these are required in the application process (e.g., Master Promissory Notes, Entrance Counselling etc). Please note that Federal Aid will not be approved by Durham University without the required documentation. Exit Counselling is also required, before the end of the Academic Year. This will be requested before your final disbursement, or if you are cancelling further aid. Final Disbursements or cancellations will not take place without the required Exit Counselling being submitted. Loans are issued every year and Exit Counselling shall be required yearly.
B67: M: Durham University reserves the right to request further appropriate documentation
B68: Durham University reserves the right to request further appropriate documentation from you during the Federal Aid process where Durham University deems it necessary to clarify for either application or ongoing eligibility. Such further documents may include (but are not limited to) Passports, Social Security Documentation, Official Letters, proof of dependents and/or their location.
B70: N: Durham University has an obligation to the USDE to report any evidence of fraud with regards to Student Federal Aid
B72: O: Durham University takes part in the "National Student Loan Data System" for In-school deferments of student loan payments.
B73: The Durham University policy on reporting rules to the NSLDS, and the effects different enrolment/registration states within the University Student Record system has on loan repayments is outlined in the following link:
B74: https://www.durham.ac.uk/media/durham-university/study/international-office-/pdfs-and-forms/DurhamUniversityUSEducationLoanDefermentPolicy05012015.pdf
B76: P: Durham University reserves the right to update and revise this Summary of Terms and Conditions
B77: Durham University reserves the right to update and revise this Summary of Terms and Conditions to consider changes to Federal Rules, Durham University Rules, or changes to the interpretation of such rules. For advice on the interpretation of the Federal Rules of Durham University Rules; or significant changes in circumstances; or unusual circumstances please contact: us.loans@durham.ac.uk

Sheet Basis Of Costs
B1: How these Costs are Calculated
B3: Exchange Rate | C3: The exchange rate is set by taking the average rate for the 6-month period prior to the internal finalisation of the COA document. The 6-month period is calculated for this purpose as starting from the month the COA document is finalised and counting back 5 additional months. The exchange rate will be taken from: British Pound to US Dollar Exchange Rate Chart | Xe. This will then be rounded to two significant places"
B5: Room - Rent | C5: The default value in the sheet is derived from taking the University 2026/27 Postgraduate College room en-suite self-catering charge of £10,527.71 for a 52-week let, and converting to a weekly charge, rounded up to the nearest pound. The college cost includes utility bills and internet connection
B7: Bills/Costs Inc Travel | C7: The default value is an estimate of other bills and costs which are likely to incurred including possible telecoms charges, bus travel within the environs of Durham, Middle Common Room (MCR) subscriptions, laundry, contents insurance etc
B9: Food | C9: Default value is an estimate of food costs for self-catering, plus lunches/coffees from University branded YUM outlets, plus an occasional meal from non-University outlets
B11: Books & Copying | C11: An estimate of costs for books, photocopying and printing of on-line PDF type resources from e-journals etc
B13: Personal | C13: An estimate of essential purchases e.g. toiletries and clothing plus social and leisure costs
B15: 2 return flights | C15: Based on the cost of two BA return flights Heathrow/LA return travelling at weekends and rounded up by £100 to the nearest £100
B17: PC | C17: Cost of a good quality laptop from Currys plus a printer plus £25 month broadband charge and rounded up by £100 to the nearest £100; or round to £1,200; whichever is the greater
B19: PLUS Loan | C19: The balance of the cost of attendance after Sub & Unsub and grossed up to include Origination Fee of 1.057% (Direct lending website) on Sub & Unsub added to PLUS loan needs and then increased again to include the 4.228% origination fee charged on PLUS Loans as quoted on Direct Lending website. this ensures that the cash you receive, after foreign exchange and deduction of origination fees, is the sterling cost of attendance.
B21: Immigration Health Surcharge | C21: PGT students - 1 year course NHS fee £1164
C22: PGR students - 4 year course NHS fee £3492
C23: UGT students - 3 year course NHS fee £2716
B25: Year Dates | C25: These dates are set to minimise the risk of your loan being rejected by overlapping a previous year.
C26: Postgraduates - The term starts on 05 Oct 2026 but the loan year will be 1st October 2026 to 30 Sept 2027 (365 days)
C27: Undergraduates - The term starts on 5 Oct 2026 but the loan year will be 1st October 2026 to 26 June 2027 (end of final term)
B29: Disbursement Dates | C29: The transfer of funds from ED Dept to our UK bank and takes at least 10 working days. These dates are a full 10 working days from the date our office opens after Christmas/Easter or the start of term (whichever is later)
C30: WARNING - THESE DATES ARE EXPECTED AND NOT ACTUAL. Allow for about 5 days delay - just in case. Please ensure you have sufficient funds to last until you receive disbursed funds. The process cannot be speeded up once it has commenced to cover a shortfall in your funding.
B32: Please Note | C32: Bank Declaration (October 2026 entrants): International students may experience delays when opening a UK bank account on arrival. This declaration provides an auditable record explaining why funds may be held for a longer period, to ensure compliance with audit requirements.

Sheet Cost of Attendance
B2: Cost of Attendance & Loan Calculation for Academic Year 2026/27 | K2: CHOICE | L2: Dependancy | M2: Year | O2: STANDING DATA - maximum costs | R2: STANDING DATA Max Levels of Sub & Unsub TABLE 1 | V2: Origination Fees | AB2: COSTS
G3: $ | H3: YEARLY UG | I3: YEARLY PG | K3: YES | L3: I | M3: 1 | O3: Room - Rent | P3: 202 | R3: Sub | S3: Unsub Depend | T3: Unsub Ind | V3: Loan Type | W3: % Rate | X3: Interest Rebate | Y3: Final rate | Z3: Actual Factor | AB3: Cost of 2 return flights | AC3: 2200
K4: NO | L4: D | M4: 2 | O4: Bills/Costs (inc. Travel) | P4: 43 | Q4: postgraduates | R4: 0 | S4: 0 | T4: 20500 | V4: Sub Loan Orig Fee | W4: 1.057 | X4: 0 | Y4: =W4-X4 -> 1.057 | Z4: =Y4*0.01 -> 0.01057 | AB4: Suggestion PC/Printer | AC4: 1200
K5: N/A | M5: 3 | O5: Food | P5: 53 | Q5: Undergraduate1 | R5: 3500 | S5: 2000 | T5: 6000 | V5: Unsub Loan Orig Fee | W5: 1.057 | X5: 0 | Y5: =W5-X5 -> 1.057 | Z5: =Y5*0.01 -> 0.01057
E6: US Dollar Exchange Rate | F6: 1.34 | K6: FEDERAL AID ONLY | L6: YES | M6: 4 | O6: Books & Copying | P6: 22 | Q6: Undergraduate2 | R6: 4500 | S6: 2000 | T6: 6000 | V6: PLUS Orig Fee | W6: 4.228 | X6: 0 | Y6: =W6-X6 -> 4.228 | Z6: =Y6*0.01 -> 0.04228
E7: No of Weeks for Undergraduates | F7: 38 | K7: SALLIE MAE ONLY | L7: NO | M7: 5 | O7: Personal | P7: 53 | Q7: Undergraduate>2 | R7: 5500 | S7: 2000 | T7: 7000
E8: No of Weeks for Postgraduates | F8: 52 | K8: FEDERAL AID AND SALLIE MAE | L8: N/A | M8: 6
M9: On Continuation | V9: STATEMENTS
B10: Instructions - Only text in blue requires completion. Some fields are free type and others are drop down | V10: You are required to submit evidence for the other essential costs you have declared in section 3
O11: Grade Level | P11: Dependent | Q11: Independent
O12: 1st Year | P12: $3,500 sub / $5,500 total | Q12: $3,500 sub / $9,500 total
K13: FINAL CALCULATIONS | O13: 2nd Year | P13: $4,500 sub / $6,500 total | Q13: $4,500 sub / $10,500 total
B14: Section 1 | K14: Requested Cost of Attendance (Values rounded) | L14: $ | O14: 3rd+ Year | P14: $5,500 sub / $7,500 total | Q14: $5,500 sub / $12,500 total
B15: Personal & Financial information | K15: Tuition Fees | L15: =F61 -> 0
B16: Family Name | D16: Family Name | K16: Room | L16: 10286
B17: First Name | D17: First Name | K17: Bills | L17: 2190
B18: FAFSA Address Line 1 | D18: Address | K18: Food | L18: 2699
B19: Address Line 2 | K19: Books | L19: 1120
B20: Address Line 3 | K20: Personal | L20: 2699
B21: Country | D21: USA | K21: Other Essential Costs | L21: 4556 | N21: LOAN CALC
B22: Zip code / Postcode | K22: Total Cost of Attendance | L22: =SUM(L15:L21) -> 23550 | O22: MAX LOANS | P22: Origination fee | Q22: MAX LOANS + FEE | R22: MAX LOANS REDUCED BY FEE
B23: Email | D23: Email address | K23: Adjust for Sponsorship, Awards or other Aid | L23: =-ROUND(G40,0) -> 0 | N23: Sub loan limit | O23: =IF(E30="NO",0,_xlfn.IFS(D27=1,3500,D27=2,4500,D27>=3,5500)) -> 3500
B24: Date of Birth dd/mm/yyyy | D24: 1988-01-01 | K24: Total Requested Cost of Attendance | L24: =ROUND((SUM(L22:L23)),0) -> 23550 | N24: Total loan limit | O24: =IF(AND(E30="NO",E32="YES"),50000,IF(E30="NO",20500,_xlfn.IFS(AND(D27=1,E33="D"),5500,AND(D27=1,E33="I"),9500,AND(D27=2,E33="D"),6500,AND(D27=2,E33="I"),10500,AND(D27>=3,E33="D"),7500,AND(D27>=3,E33="I"),12500))) -> 5500
B25: Full Social Security Number | D25: 123 45 6789 | N25: Need Calc | O25: =MAX(F68-E34,0) -> 23550
B26: Degree Type and Course Title | D26: eg PhD Theology | K26: Maximum you can borrow | L26: $ | N26: Subsidized Loan Eligibility | O26: =MIN(O25,O23) -> 3500 | P26: =O26 * 0.01057 -> 36.995 | Q26: =O26 + (O26 * 0.01057) -> 3536.995 | R26: =O26-P26 -> 3463.005
B27: Year of Study On Course as of 1 Oct | D27: 1 | K27: Subsidised - Adjusted by EFC | L27: =O26 -> 3500 | N27: Unsubsidized Loan Eligibility | O27: =MAX(MIN(O24-O26,F68-(O26 + G40)), 0) -> 2000 | P27: =O27 * 0.01057 -> 21.14 | Q27: =O27 + (O27 * 0.01057) -> 2021.14 | R27: =O27-P27 -> 1978.86
B28: Durham Student Number (Banner id) | D28: 00??????? | K28: Unsubsudised | L28: =O27 -> 2000 | N28: UG PARENT PLUS | O28: =IF(E30="NO",0,IF(D27=1,MIN(20000,MAX(F68-(G40+O26+O27),0)),MAX(F68-(G40+O26+O27),0))) -> 18050 | P28: =O28 * 0.04228 -> 763.154 | Q28: =O28 + (O28 * 0.04228) -> 18813.154 | R28: 17286.846
N29: Graduate plus | O29: =IF(OR(E31="NO", E31="N/A"), 0, O25 - E84 - E85 - E86 - E88) -> 0
B30: Are you on an undergraduate program? | E30: YES | N30: PRIVATE LOANS AMOUNTS | O30: =MAX(F68-(G40+O26+O27+O28+O29),0) -> 0
B31: Did you start and take federal loans for your postgraduate programme prior to 26/27 | E31: N/A | F31: Requires answer | K31: Total Eligible before adjustment for Fees | L31: =SUM(L27:L30) -> 5500
B32: Are you studying a postgraduate course in Law or Theology that attracts higher levels of graduate plus borrowing? | E32: N/A | F32: Requires answer
B33: What is your "dependency status" Dependant (D), Independent (I) | E33: D
B34: What is your SAI ( Even zero must be entered) | E34: 0
B35: Enter your Tuition Fees | E35: 0 | G35: =$E35*$F6 -> 0 | H35: =$E35*$F6 -> 0 | I35: =$E35*$F6 -> 0
B36: Enter amount of the Tuition fees to be paid by a sponsor (only enter in the $ or £ box ) eg Durham Sport, Doctoral or DBS awards etc | E36: 0 | F36: 0 | G36: =$E36*$F6 -> 0 | H36: =$E36*$F6 -> 0 | I36: =$E36*$F6 -> 0
B37: Enter how much has already been awarded by Durham as a Scholarship or Financial Aid | E37: 0 | G37: =$E37*$F6 -> 0 | H37: =$E37*$F6 -> 0 | I37: =$E37*$F6 -> 0
B38: Enter how much has been awarded by any other Scholarship or Financial Aid in the UK | E38: 0 | G38: =E38*F6 -> 0 | H38: =$E38*$F6 -> 0 | I38: =$E38*$F6 -> 0
B39: Enter how much has been awarded by any other Scholarship or Financial Aid from the USA. eg Americorps, State Funding etc, but NOT VA | E39: 0 | G39: =E39 -> 0 | H39: =$E39*$F6 -> 0 | I39: =$E39*$F6 -> 0
B40: Section 2 | G40: =SUM(G36:G39,F36) -> 0
B41: Weekly Essential Costs - Durham Maximum Estimates
B42: These are the maximum estimated figures for Durham Your costs may be lower depending on where you live. You can reduce your weekly figures in the boxes.
B43: Room - Rent | F43: 202 | G43: =F43*F6 -> 270.68 | H43: =G43*$F$7 -> 10285.84 | I43: =G43*$F$8 -> 14075.36
B44: Bills/Costs (inc. Travel) | F44: 43 | G44: =F44*F6 -> 57.62 | H44: 2189.56 | I44: 2996.24
B45: Food | F45: 53 | G45: =F45*F6 -> 71.02 | H45: 2698.76 | I45: 3693.04
B46: Books & Copying | F46: 22 | G46: =F46*F6 -> 29.48 | H46: 1120.24 | I46: 1532.96
B47: Personal | F47: 53 | G47: =F47*F6 -> 71.02 | H47: 2698.76 | I47: 3693.04
B48: Total | F48: =SUM(F43:F47) -> 373 | G48: =F48*F6 -> 499.82 | H48: 18993.16 | I48: 25990.64
B49: Section 3
B50: Single or extra costs for the year - you may adjust or add extras here, but may be asked for proof of extra need.
B51: Cost of 2 return flights | F51: 2200 | G51: =$F51*$F$6 -> 2948 | H51: 2948 | I51: 2948
B52: Suggestion PC/Printer | F52: 1200 | G52: 1608 | H52: 1608 | I52: 1608
B53: Add any other essential costs - (Visa cost of £558 can be included if applying) | F53: 0 | G53: 0 | H53: 0 | I53: 0
B54: Immigration Health Surcharge (new students only) - see rates from "Basis of Costs" tab | F54: 0 | G54: 0 | H54: 0 | I54: 0
B55: Add details of any other essential costs | F55: 0 | G55: 0 | H55: 0 | I55: 0
B56: Add details of any other essential costs | F56: 0 | G56: 0 | H56: 0 | I56: 0
B57: Add details of any other essential costs | F57: 0 | G57: 0 | H57: 0 | I57: 0
B58: Section 4 | H58: =SUM(H51:H57) -> 4556
D59: ESTIMATED FINAL COSTS & MAXIMUM LOAN ELIGIBILITY - YOU MAY BORROW LESS IF YOU CHOOSE
B60: Cost of Attendance
B61: Tuition Fees | F61: =ROUND(G35,0) -> 0
B62: Room | F62: =ROUND((IF(E30="NO",I43,H43)),0) -> 10286
B63: Other Bills/Costs inc. Travel | F63: =ROUND((IF(E30="NO",I44,H44)),0) -> 2190
B64: Food | F64: =ROUND((IF(E30="NO",I45,H45)),0) -> 2699
B65: Books and Copying | F65: =ROUND((IF(E30="NO",I46,H46)),0) -> 1120
B66: Personal | F66: =ROUND((IF(E30="NO",I47,H47)),0) -> 2699
B67: Other Essential Costs | F67: =ROUND(H58,0) -> 4556
B68: Total Cost of Attendance | F68: =SUM(F61:F67) -> 23550
B69: Adjust for Sponsorship, Awards or other Aid | F69: =ROUND((-G40),0) -> 0
B70: Total Requested Cost of Attendance | F70: =ROUND((SUM(F68:F69)),0) -> 23550
B71: Maximum Eligible Federal Loans
B72: Subsidised - Adjusted by SAI | F72: =O26 -> 3500
B73: Unsubsidised - Adjusted by Subsidised | F73: =O27 -> 2000
B74: PLUS Loan allowed on CoA (Plus Loans subject to credit check) | F74: =O28 -> 18050
B75: Total Eligible Loans Available before adjustment for Fees | F75: =SUM(F72,F73,F74) -> 23550
B76: Maximum Eligible Private Loans (Amount will be reduced by any Federal Loans taken)
B77: Private loan amount | F77: =L24 -> 23550
B81: Section 5
B82: HOW MUCH WOULD YOU LIKE TO BORROW -ENTER THE AMOUNTS IN BLUE
B83: Max Loan amounts per loan type - NOT IN TOTAL | C83: Government Origination Fee | D83: State how much you would like to borrow | E83: Your Request | F83: After Origination Fees You Get (May include rounding)
B84: =O26 -> 3500 | C84: 0.01057 | D84: Federal Subsidized Loan | E84: 0 | F84: =ROUND(E84*(1-C84),0) -> 0
B85: =O27 -> 2000 | C85: 0.01057 | D85: Federal Unsubsidized Loan | E85: 0 | F85: =ROUND(E85*(1-C85),0) -> 0
B86: =O28 -> 18050 | C86: 0.04228 | D86: Federal Undergraduate Parent plus | E86: 0 | F86: 0
B87: =O29 -> 0 | C87: 0.04228 | D87: Federal Graduate Plus Loan | E87: 0 | F87: 0
B88: =MAX(0, L24 - E84 - E85 - E86 - E87) -> 23550 | D88: Private Loans (Taking out Private loans to cover a shortfall is optional, not mandatory) | E88: 0 | F88: 0
B89: Total | E89: =IF(SUM(E84:E88)> L24,"PRIVATE LOAN AMOUNT EXCEEDED",SUM(E84:E88)) -> 0 | F89: =IF(SUM(F84:F88)> L24,"PRIVATE LOAN AMOUNT EXCEEDED",SUM(F84:F88)) -> 0
B90: Section 6
D91: SCHOOL RESPONSES
B92: =IF(E89 <=#REF!,M86,#REF!) -> 
B93: =IF(OR(F55<>0, F56<>0, F57<>0), V10, "") -> 
B94: Section 7
B95: Government Fees (Federal Loans Only)
B96: Subsidised Origination Fee of 1.057% (No Origination Fee Rebate Currently In Force) | F96: 0.01057
B97: Unsubsudised Origination Fee of 1.057% (No Origination Fee Rebate Currently In Force) | F97: 0.01057
B98: PLUS Loan (Adjusted up to include all fees, Origination Fee of 4.228%, No Origination Fee Rebate currently in force) | F98: 0.04228

Sheet Presubmission Checklist
B2: Checklist for Federal Aid & Sallie Mae Applications | F2: Allowed
B3: Please put Y or N in the response box for each question | F3: Y
B4: The default setting is "N" | F4: N
B5: Spreadsheet | C5: Response | D5: School Comments
B6: Have you entered your name and full address on the CoA spreadsheet | C6: N | D6: =IF((C6="n"),"Go back to the spreadsheet and enter it or we cannot process your application","") -> Go back to the spreadsheet and enter it or we cannot process your application
B7: Have you entered your SSN on the CoA spreadsheet | C7: N | D7: =IF((C7="n"),"Go back to the spreadsheet and enter it or we cannot process your application","") -> Go back to the spreadsheet and enter it or we cannot process your application
B8: Have you correctly entered your email address on the CoA spreadsheet | C8: N | D8: Go back to the spreadsheet and enter it or we cannot process your application
B9: Have you entered the SAI on the CoA spreadsheet | C9: N | D9: Go back to the spreadsheet and enter it or we cannot process your application
B10: Have you entered your tuition fees on the CoA spreadsheet | C10: N | D10: Go back to the spreadsheet and enter it or we cannot process your application
B11: Have you entered on the spreadsheet how much you wish to borrow (Section 6) | C11: N | D11: Go back to the spreadsheet and enter it or we cannot process your application
B12: If you are applying for Student Federal Aid, then please complete the section below, if you are ONLY applying for Sallie Mae Private Loans then it is not required
B15: Signed Forms | C15: Response | D15: School Comments
B16: Signed Terms and Condtions | C16: N | D16: =IF((C16="n"),"Application Rejected","") -> Application Rejected
B17: Signed Bank Declaration | C17: N | D17: =IF((C17="n"),"Application Rejected","") -> Application Rejected
B18: FAFSA Summary Report | C18: N | D18: =IF((C18="n"),"Application Rejected","") -> Application Rejected
B20: Promissory Notes | C20: Response | D20: School Comments
B21: Have you attached your Direct Subsidized/Unsubsidized MPN | C21: N | D21: =IF((C21="n"),"Application Rejected","") -> Application Rejected
B22: Have you applied for a PLUS Loan | C22: N
B23: Have you attached your Credit Check (PLUS Loans) | C23: N | D23: =IF(((C22="y")*AND(C23="n")),"Application Rejected","") -> 
B25: Entrance Counselling | C25: Response | D25: School Comments
B26: Have you attached your entrance counselling completion | C26: N | D26: =IF((C26="n"),"Application Rejected","") -> Application Rejected
B29: If there are no school comments then we have sufficient information to start the origination process. If anything is missing or incorrect, then we cannot originate your loans.

Sheet Visa Letter (Office use only)
A1: ='Cost of Attendance'!D17&" "&'Cost of Attendance'!D16 -> First Name Family Name
A2: ='Cost of Attendance'!D18 -> Address
A3: ='Cost of Attendance'!D19 -> 
A4: ='Cost of Attendance'!D20 -> 
A5: ='Cost of Attendance'!D21 -> USA
A6: ='Cost of Attendance'!D22 -> 0
A11: Notification of Student Loan
A12: For Academic Year 2026/27
A15: This is to certify that
A17: Student Name | B17: ='Cost of Attendance'!D17&" "&'Cost of Attendance'!D16 -> First Name Family Name
A18: Date of Birth (dd/mm/yyyy) | B18: ='Cost of Attendance'!D24 -> 1988-01-01
A19: Student/Applicant ID | B19: ='Cost of Attendance'!D28 -> 00???????
A21: Has been accepted in a degree-granting programme (or otherwise eligible programme) at Durham University.
A23: Durham University participates in the William D. Ford Federal Direct Loan Program administered by the United States Department of Education.
A24: Eligible students attending Durham University may receive federal student loan funding
A25: subject to United States federal legislation, United States Department of Education regulations
A26: and individual borrower eligibility requirements applicable to their programme and period of study.
A28: The funding detailed below reflects the federal student loan funding approved for this student for the stated academic year.
A29: Start Date | B29: 2026-10-01
A30: End Date | B30: 2027-09-30
A32: the student (or, in some cases, the student’s parent) will receive the following Direct Loans:
A33: Loan Type | B33: Loan Amount
A34: Direct Subsidized Loan | B34: ='Cost of Attendance'!F84 -> 0
A35: Direct Unsubsidized Loan | B35: ='Cost of Attendance'!F85 -> 0
A36: Parent PLUS | B36: ='Cost of Attendance'!E86 -> 0
A37: Direct PLUS Loan | B37: =SUM('Cost of Attendance'!F87,'Cost of Attendance'!F90) -> 0
A39: Total | B39: =B34+B35+B36+B37+B38 -> 0
A41: The disbursement dates are as follows:
A42: 2026-10-14 | B42: =B39/3 -> 0
A43: 2027-01-11 | B43: =B39/3 -> 0
A44: 2027-04-26 | B44: =B39/3 -> 0
A45: Total | B45: =SUM(B42:B44) -> 0
A47: Authentication
A49: This letter is valid only when issued by Durham University on official University letterhead and signed
A50: by an authorised member of staff within the Student Funding and Immigration Service.
A51: Any alteration to this document will render it invalid.
A53: Enquiries regarding the authenticity of this letter may be directed to: us.loans@durham.ac.uk
A58: Date Issued | B58: =TODAY() -> 2026-08-04

Sheet Visa Letter (Private Lender)
A1: ='Cost of Attendance'!D17&" "&'Cost of Attendance'!D16 -> First Name Family Name
A2: ='Cost of Attendance'!D18 -> Address
A3: ='Cost of Attendance'!D19 -> 
A4: ='Cost of Attendance'!D20 -> 
A5: ='Cost of Attendance'!D21 -> USA
A6: ='Cost of Attendance'!D22 -> 0
A11: Notification of Student Loan
A12: For Academic Year 2026/27
A15: This letter confirms that :
A17: Student Name | B17: ='Cost of Attendance'!D17&" "&'Cost of Attendance'!D16 -> First Name Family Name
A18: Date of Birth (dd/mm/yyyy) | B18: ='Cost of Attendance'!D24 -> 1988-01-01
A19: Student/Applicant ID | B19: ='Cost of Attendance'!D28 -> 00???????
A21: Has been accepted in a degree-granting programme (or otherwise eligible programme) at Durham University.
A23: Based on our calculation of the student’s financial needs and Direct Loan eligibility for the loan period
A24: Start Date | B24: 2026-10-01
A25: End Date | B25: 2027-09-30
A27: Based upon documentation provided to and reviewed by Durham University,
A28: the student has secured educational funding for the above period of study as follows:
A30: Loan Type | B30: Loan Amount
A31: Private Lender | B31: =SUM('Cost of Attendance'!F88,'Cost of Attendance'!F91) -> 0
A32: Total | B32: =B31 -> 0
A34: The disbursement dates are as follows:
A35: 2026-10-07 | B35: =B32/3 -> 0
A36: 2027-01-11 | B36: =B32/3 -> 0
A37: 2027-04-26 | B37: =B32/3 -> 0
A38: Total | B38: =SUM(B35:B37) -> 0
A40: Authentication
A42: This letter is valid only when issued by Durham University on official University letterhead and signed
A43: by an authorised member of staff within the Student Funding and Immigration Service.
A44: Any alteration to this document will render it invalid.
A46: Enquiries regarding the authenticity of this letter may be directed to: us.loans@durham.ac.uk
A51: Date Issued | B51: =TODAY() -> 2026-08-04
